[Event "Titled Tuesday Blitz December 06 Late 2022"]
[White "Haszon, David"]
[Black "Guzman Moneo, Alberto"]
[WhiteFideId "733610"]
[BlackFideId "2209616"]
[WhiteElo "2210"]
[BlackElo "2157"]
[Result "0-1"]
[Round "11"]
[TimeControl "180+1"]
[Date "2022.12.07"]
[WhiteClock "0:01:15"]
[BlackClock "0:00:32"]

1. e4 {[%clk 0:03:00]}  c5 {[%clk 0:02:59]} 2. c3 {[%clk 0:03:00]}  e5 {[%clk 0:02:58]} 3. d4 {[%clk 0:02:59]}  cxd4 {[%clk 0:02:59]} 4. cxd4 {[%clk 0:02:58]}  exd4 {[%clk 0:03:00]} 5. Nf3 {[%clk 0:02:59]}  Nc6 {[%clk 0:02:58]} 6. Bc4 {[%clk 0:02:58]}  Nf6 {[%clk 0:02:56]} 7. O-O {[%clk 0:02:54]}  Nxe4 {[%clk 0:02:55]} 8. Nxd4 {[%clk 0:02:50]}  d5 {[%clk 0:02:55]} 9. Bb5 {[%clk 0:02:50]}  Bd7 {[%clk 0:02:54]} 10. Nc3 {[%clk 0:02:46]}  Nxc3 {[%clk 0:02:44]} 11. bxc3 {[%clk 0:02:46]}  Nxd4 {[%clk 0:02:37]} 12. Bxd7+ {[%clk 0:02:44]}  Qxd7 {[%clk 0:02:29]} 13. Qxd4 {[%clk 0:02:45]}  f6 {[%clk 0:02:27]} 14. Re1+ {[%clk 0:02:38]}  Kf7 {[%clk 0:02:27]} 15. c4 {[%clk 0:02:38]}  Rd8 {[%clk 0:02:23]} 16. cxd5 {[%clk 0:02:39]}  Qxd5 {[%clk 0:02:21]} 17. Qxa7 {[%clk 0:02:39]}  Bc5 {[%clk 0:02:17]} 18. Qa4 {[%clk 0:02:38]}  Rhe8 {[%clk 0:02:04]} 19. Ba3 {[%clk 0:02:37]}  Bxa3 {[%clk 0:01:34]} 20. Qxa3 {[%clk 0:02:36]}  Kg8 {[%clk 0:01:29]} 21. Qb4 {[%clk 0:02:30]}  h6 {[%clk 0:01:23]} 22. a4 {[%clk 0:02:29]}  Kh8 {[%clk 0:01:22]} 23. g3 {[%clk 0:02:29]}  Ra8 {[%clk 0:01:13]} 24. Red1 {[%clk 0:02:26]}  Qe4 {[%clk 0:01:10]} 25. Rd4 {[%clk 0:02:22]}  Qe2 {[%clk 0:01:07]} 26. Qxb7 {[%clk 0:02:16]}  Rab8 {[%clk 0:01:06]} 27. Qd5 {[%clk 0:02:08]}  Rb2 {[%clk 0:01:06]} 28. Qf5 {[%clk 0:02:01]}  Rd2 {[%clk 0:00:53]} 29. Rxd2 {[%clk 0:01:59]}  Qxd2 {[%clk 0:00:54]} 30. a5 {[%clk 0:01:56]}  Qb2 {[%clk 0:00:53]} 31. Qb1 {[%clk 0:01:54]}  Qxb1+ {[%clk 0:00:49]} 32. Rxb1 {[%clk 0:01:55]}  Ra8 {[%clk 0:00:50]} 33. Ra1 {[%clk 0:01:55]}  Ra6 {[%clk 0:00:50]} 34. Kf1 {[%clk 0:01:55]}  Kg8 {[%clk 0:00:51]} 35. Ke2 {[%clk 0:01:56]}  Kf7 {[%clk 0:00:52]} 36. Kd3 {[%clk 0:01:57]}  Ke6 {[%clk 0:00:53]} 37. Kc4 {[%clk 0:01:57]}  Kd6 {[%clk 0:00:53]} 38. Kb5 {[%clk 0:01:58]}  Ra8 {[%clk 0:00:53]} 39. a6 {[%clk 0:01:58]}  Kc7 {[%clk 0:00:54]} 40. a7 {[%clk 0:01:57]}  Kb7 {[%clk 0:00:53]} 41. Kc5 {[%clk 0:01:58]}  Rc8+ {[%clk 0:00:51]} 42. Kd6 {[%clk 0:01:57]}  Ka8 {[%clk 0:00:51]} 43. Ra2 {[%clk 0:01:56]}  Re8 {[%clk 0:00:48]} 44. h4 {[%clk 0:01:52]}  h5 {[%clk 0:00:48]} 45. Kd7 {[%clk 0:01:47]}  Re5 {[%clk 0:00:45]} 46. Ra3 {[%clk 0:01:41]}  g5 {[%clk 0:00:45]} 47. Re3 {[%clk 0:01:36]}  Rf5 {[%clk 0:00:41]} 48. hxg5 {[%clk 0:01:32]}  fxg5 {[%clk 0:00:41]} 49. f3 {[%clk 0:01:31]}  h4 {[%clk 0:00:40]} 50. Ke6 {[%clk 0:01:26]}  Rf8 {[%clk 0:00:37]} 51. Kd5 {[%clk 0:01:16]}  hxg3 {[%clk 0:00:35]} 52. Ke4 {[%clk 0:01:15]}  g2 {[%clk 0:00:32]} 0-1


[Site "https://www.chess.com"]

[Event "Titled Tuesday Blitz December 06 Late 2022"]
[White "Kaganskiy, Gleb"]
[Black "Erzhanov, Arman"]
[WhiteFideId "4132025"]
[BlackFideId "4138821"]
[WhiteElo "2165"]
[BlackElo "2176"]
[Result "0-1"]
[Round "11"]
[TimeControl "180+1"]
[Date "2022.12.07"]
[WhiteClock "0:00:12"]
[BlackClock "0:00:35"]

1. e4 {[%clk 0:03:00]}  d6 {[%clk 0:02:55]} 2. d4 {[%clk 0:02:59]}  Nf6 {[%clk 0:02:55]} 3. Nc3 {[%clk 0:02:58]}  e5 {[%clk 0:02:56]} 4. Nf3 {[%clk 0:02:57]}  Nbd7 {[%clk 0:02:55]} 5. Bc4 {[%clk 0:02:56]}  Be7 {[%clk 0:02:56]} 6. dxe5 {[%clk 0:02:48]}  dxe5 {[%clk 0:02:56]} 7. Bxf7+ {[%clk 0:02:47]}  Kxf7 {[%clk 0:02:55]} 8. Ng5+ {[%clk 0:02:48]}  Kg8 {[%clk 0:02:55]} 9. Ne6 {[%clk 0:02:48]}  Qe8 {[%clk 0:02:56]} 10. Nxc7 {[%clk 0:02:46]}  Qg6 {[%clk 0:02:56]} 11. Nxa8 {[%clk 0:02:42]}  Qxg2 {[%clk 0:02:56]} 12. Rf1 {[%clk 0:02:42]}  Nc5 {[%clk 0:02:27]} 13. Qe2 {[%clk 0:02:23]}  Bh3 {[%clk 0:02:24]} 14. Nc7 {[%clk 0:02:21]}  Qxf1+ {[%clk 0:02:20]} 15. Qxf1 {[%clk 0:02:21]}  Bxf1 {[%clk 0:02:21]} 16. Kxf1 {[%clk 0:02:21]}  Ncxe4 {[%clk 0:02:19]} 17. Nxe4 {[%clk 0:02:19]}  Nxe4 {[%clk 0:02:19]} 18. Be3 {[%clk 0:02:15]}  Kf7 {[%clk 0:02:12]} 19. Bxa7 {[%clk 0:02:14]}  Rc8 {[%clk 0:02:07]} 20. Nd5 {[%clk 0:02:14]}  Rxc2 {[%clk 0:02:07]} 21. Re1 {[%clk 0:02:01]}  Nd2+ {[%clk 0:02:03]} 22. Kg2 {[%clk 0:01:58]}  Bd6 {[%clk 0:02:02]} 23. Re2 {[%clk 0:01:50]}  Rxb2 {[%clk 0:01:59]} 24. a4 {[%clk 0:00:55]}  Nc4 {[%clk 0:01:56]} 25. Rxb2 {[%clk 0:00:52]}  Nxb2 {[%clk 0:01:56]} 26. a5 {[%clk 0:00:50]}  Nc4 {[%clk 0:01:56]} 27. Bb6 {[%clk 0:00:48]}  Ke6 {[%clk 0:01:55]} 28. Nc7+ {[%clk 0:00:40]}  Kd7 {[%clk 0:01:49]} 29. Nb5 {[%clk 0:00:17]}  Nxb6 {[%clk 0:01:48]} 30. axb6 {[%clk 0:00:16]}  Bb4 {[%clk 0:01:38]} 31. Kf3 {[%clk 0:00:07]}  Kc6 {[%clk 0:01:39]} 32. Na7+ {[%clk 0:00:06]}  Kxb6 {[%clk 0:01:39]} 33. Nc8+ {[%clk 0:00:06]}  Kc7 {[%clk 0:01:36]} 34. Na7 {[%clk 0:00:06]}  Kb6 {[%clk 0:01:16]} 35. Nc8+ {[%clk 0:00:05]}  Ka6 {[%clk 0:00:47]} 36. Ke4 {[%clk 0:00:04]}  b5 {[%clk 0:00:48]} 37. Kd5 {[%clk 0:00:04]}  Kb7 {[%clk 0:00:48]} 38. Nd6+ {[%clk 0:00:03]}  Bxd6 {[%clk 0:00:48]} 39. Kxd6 {[%clk 0:00:04]}  b4 {[%clk 0:00:49]} 40. Kxe5 {[%clk 0:00:05]}  b3 {[%clk 0:00:49]} 41. Ke6 {[%clk 0:00:05]}  b2 {[%clk 0:00:50]} 42. Kf7 {[%clk 0:00:06]}  b1=Q {[%clk 0:00:51]} 43. Kxg7 {[%clk 0:00:07]}  Qg6+ {[%clk 0:00:51]} 44. Kh8 {[%clk 0:00:07]}  Kc7 {[%clk 0:00:48]} 45. f4 {[%clk 0:00:08]}  Kd7 {[%clk 0:00:48]} 46. h4 {[%clk 0:00:09]}  Ke7 {[%clk 0:00:47]} 47. f5 {[%clk 0:00:10]}  Qxf5 {[%clk 0:00:42]} 48. h5 {[%clk 0:00:11]}  Kf8 {[%clk 0:00:40]} 49. h6 {[%clk 0:00:12]}  Qf6+ {[%clk 0:00:37]} 50. Kxh7 {[%clk 0:00:12]}  Qf7+ {[%clk 0:00:35]} 51. Kh8 {[%clk 0:00:12]}  Ke7 {[%clk 0:00:34]} 52. h7 {[%clk 0:00:12]}  Qf8# {[%clk 0:00:35]} 0-1


[Site "https://www.chess.com"]

[Event "Titled Tuesday Blitz December 06 Late 2022"]
[White "Kaplan, Avi Harrison"]
[Black "Rodriguez Santiago, Jaime"]
[WhiteFideId "30934559"]
[BlackFideId "3100898"]
[WhiteElo "1983"]
[BlackElo "2025"]
[Result "1-0"]
[Round "11"]
[TimeControl "180+1"]
[Date "2022.12.07"]
[WhiteClock "0:01:12"]
[BlackClock "0:00:18"]

1. d4 {[%clk 0:03:00]}  Nf6 {[%clk 0:02:58]} 2. c4 {[%clk 0:03:01]}  e6 {[%clk 0:02:54]} 3. Nc3 {[%clk 0:03:00]}  d5 {[%clk 0:02:54]} 4. cxd5 {[%clk 0:02:57]}  Nxd5 {[%clk 0:02:53]} 5. e4 {[%clk 0:02:57]}  Nxc3 {[%clk 0:02:52]} 6. bxc3 {[%clk 0:02:58]}  c5 {[%clk 0:02:53]} 7. Nf3 {[%clk 0:02:58]}  cxd4 {[%clk 0:02:52]} 8. cxd4 {[%clk 0:02:59]}  Bb4+ {[%clk 0:02:52]} 9. Bd2 {[%clk 0:03:00]}  Bxd2+ {[%clk 0:02:53]} 10. Qxd2 {[%clk 0:03:01]}  O-O {[%clk 0:02:53]} 11. Bd3 {[%clk 0:03:02]}  Nc6 {[%clk 0:02:53]} 12. e5 {[%clk 0:03:02]}  h6 {[%clk 0:02:43]} 13. h4 {[%clk 0:03:00]}  Qa5 {[%clk 0:02:37]} 14. Qxa5 {[%clk 0:02:50]}  Nxa5 {[%clk 0:02:37]} 15. Kd2 {[%clk 0:02:51]}  Rd8 {[%clk 0:02:35]} 16. Ke3 {[%clk 0:02:50]}  b6 {[%clk 0:02:34]} 17. Nd2 {[%clk 0:02:43]}  Bb7 {[%clk 0:02:31]} 18. f3 {[%clk 0:02:42]}  Rac8 {[%clk 0:02:30]} 19. Ne4 {[%clk 0:02:42]}  Bxe4 {[%clk 0:02:19]} 20. fxe4 {[%clk 0:02:43]}  Rc3 {[%clk 0:02:14]} 21. Rac1 {[%clk 0:02:30]}  Ra3 {[%clk 0:01:48]} 22. Rc7 {[%clk 0:02:19]}  b5 {[%clk 0:01:43]} 23. d5 {[%clk 0:02:01]}  Nc4+ {[%clk 0:01:30]} 24. Kd4 {[%clk 0:01:54]}  Nb2 {[%clk 0:01:04]} 25. Bxb5 {[%clk 0:01:36]}  a6 {[%clk 0:00:59]} 26. Ra7 {[%clk 0:01:26]}  exd5 {[%clk 0:00:45]} 27. exd5 {[%clk 0:01:25]}  Rg3 {[%clk 0:00:44]} 28. Bxa6 {[%clk 0:01:18]}  Rxg2 {[%clk 0:00:38]} 29. Rf1 {[%clk 0:01:18]}  Rd2+ {[%clk 0:00:37]} 30. Kc3 {[%clk 0:01:17]}  R8xd5 {[%clk 0:00:29]} 31. Rfxf7 {[%clk 0:01:16]}  Na4+ {[%clk 0:00:22]} 32. Kb3 {[%clk 0:01:14]}  Nc5+ {[%clk 0:00:20]} 33. Ka3 {[%clk 0:01:14]}  R2d3+ {[%clk 0:00:20]} 34. Bxd3 {[%clk 0:01:12]}  Rxd3+ {[%clk 0:00:20]} 35. Kb4 {[%clk 0:01:12]}  Rg3 {[%clk 0:00:18]} 36. Kxc5 {[%clk 0:01:12]} 1-0


[Site "https://www.chess.com"]

[Event "Titled Tuesday Blitz December 06 Late 2022"]
[White "Papayan, Oleg"]
[Black "Kovacevic, Radmila"]
[WhiteFideId "4193911"]
[BlackFideId "933171"]
[WhiteElo "2153"]
[BlackElo "2244"]
[Result "1-0"]
[Round "11"]
[TimeControl "180+1"]
[Date "2022.12.07"]
[WhiteClock "0:00:16"]
[BlackClock "0:00:06"]

1. e4 {[%clk 0:02:57]}  e5 {[%clk 0:03:00]} 2. Nf3 {[%clk 0:02:56]}  f5 {[%clk 0:03:00]} 3. Nxe5 {[%clk 0:02:55]}  Qf6 {[%clk 0:02:59]} 4. d4 {[%clk 0:02:49]}  d6 {[%clk 0:02:58]} 5. Nc4 {[%clk 0:02:46]}  fxe4 {[%clk 0:02:59]} 6. Nc3 {[%clk 0:02:45]}  Qg6 {[%clk 0:02:59]} 7. Nd5 {[%clk 0:02:12]}  Na6 {[%clk 0:02:57]} 8. Nce3 {[%clk 0:02:09]}  Qf7 {[%clk 0:02:47]} 9. Bxa6 {[%clk 0:02:09]}  bxa6 {[%clk 0:02:47]} 10. c4 {[%clk 0:02:01]}  c6 {[%clk 0:02:39]} 11. Nc3 {[%clk 0:02:01]}  Nf6 {[%clk 0:02:33]} 12. d5 {[%clk 0:01:58]}  c5 {[%clk 0:02:32]} 13. O-O {[%clk 0:01:47]}  Be7 {[%clk 0:02:25]} 14. Qa4+ {[%clk 0:01:47]}  Bd7 {[%clk 0:02:18]} 15. Qxa6 {[%clk 0:01:46]}  O-O {[%clk 0:02:18]} 16. Nb5 {[%clk 0:01:33]}  Rfb8 {[%clk 0:02:11]} 17. Nxd6 {[%clk 0:01:30]}  Qg6 {[%clk 0:02:05]} 18. Nb5 {[%clk 0:01:19]}  Rb6 {[%clk 0:01:56]} 19. Qa3 {[%clk 0:01:11]}  Nh5 {[%clk 0:01:51]} 20. d6 {[%clk 0:01:02]}  Bxd6 {[%clk 0:01:32]} 21. Nd5 {[%clk 0:01:02]}  Bh3 {[%clk 0:01:24]} 22. Qxh3 {[%clk 0:01:00]}  Rxb5 {[%clk 0:01:17]} 23. cxb5 {[%clk 0:00:58]}  Rf8 {[%clk 0:01:14]} 24. Be3 {[%clk 0:00:50]}  Rf3 {[%clk 0:01:10]} 25. Qc8+ {[%clk 0:00:42]}  Rf8 {[%clk 0:01:08]} 26. Qd7 {[%clk 0:00:37]}  Kh8 {[%clk 0:00:57]} 27. Rad1 {[%clk 0:00:37]}  Bb8 {[%clk 0:00:42]} 28. f4 {[%clk 0:00:35]}  exf3 {[%clk 0:00:40]} 29. Rxf3 {[%clk 0:00:32]}  Nf6 {[%clk 0:00:25]} 30. Qf5 {[%clk 0:00:29]}  Qe8 {[%clk 0:00:19]} 31. Nxf6 {[%clk 0:00:25]}  gxf6 {[%clk 0:00:19]} 32. Qxc5 {[%clk 0:00:22]}  Rg8 {[%clk 0:00:16]} 33. Qf5 {[%clk 0:00:20]}  Be5 {[%clk 0:00:14]} 34. Bf4 {[%clk 0:00:17]}  Qxb5 {[%clk 0:00:10]} 35. Bxe5 {[%clk 0:00:16]}  fxe5 {[%clk 0:00:07]} 36. Qf6+ {[%clk 0:00:15]}  Rg7 {[%clk 0:00:07]} 37. Rd8+ {[%clk 0:00:15]}  Qe8 {[%clk 0:00:06]} 38. Rxe8# {[%clk 0:00:16]} 1-0


[Site "https://www.chess.com"]

[Event "Titled Tuesday Blitz December 06 Late 2022"]
[White "Petrovic, Aleksa"]
[Black "Sargsyan, Anna M."]
[WhiteFideId "967629"]
[BlackFideId "13308130"]
[WhiteElo "2230"]
[BlackElo "2284"]
[Result "0-1"]
[Round "11"]
[TimeControl "180+1"]
[Date "2022.12.07"]
[WhiteClock "0:00:19"]
[BlackClock "0:00:12"]

1. d4 {[%clk 0:02:57]}  d5 {[%clk 0:02:58]} 2. c4 {[%clk 0:02:57]}  c6 {[%clk 0:02:58]} 3. Nf3 {[%clk 0:02:57]}  Nf6 {[%clk 0:02:59]} 4. Nc3 {[%clk 0:02:57]}  dxc4 {[%clk 0:02:58]} 5. e4 {[%clk 0:02:56]}  e6 {[%clk 0:02:57]} 6. Bxc4 {[%clk 0:02:56]}  Bb4 {[%clk 0:02:56]} 7. O-O {[%clk 0:02:53]}  O-O {[%clk 0:02:55]} 8. e5 {[%clk 0:02:50]}  Nd5 {[%clk 0:02:53]} 9. Bd3 {[%clk 0:02:42]}  h6 {[%clk 0:02:48]} 10. Qe2 {[%clk 0:02:37]}  Bxc3 {[%clk 0:02:36]} 11. bxc3 {[%clk 0:02:31]}  Nxc3 {[%clk 0:02:28]} 12. Qe1 {[%clk 0:02:31]}  Nd5 {[%clk 0:02:26]} 13. Bxh6 {[%clk 0:02:26]}  gxh6 {[%clk 0:02:00]} 14. Qe4 {[%clk 0:02:26]}  Re8 {[%clk 0:01:42]} 15. Qh7+ {[%clk 0:02:21]}  Kf8 {[%clk 0:01:42]} 16. Qxh6+ {[%clk 0:01:58]}  Ke7 {[%clk 0:01:38]} 17. Nd2 {[%clk 0:01:48]}  Rh8 {[%clk 0:01:36]} 18. Qg5+ {[%clk 0:01:48]}  Kd7 {[%clk 0:01:36]} 19. Qxd8+ {[%clk 0:01:48]}  Kxd8 {[%clk 0:01:35]} 20. f4 {[%clk 0:01:46]}  b6 {[%clk 0:01:28]} 21. Ne4 {[%clk 0:01:40]}  Ba6 {[%clk 0:01:26]} 22. Bxa6 {[%clk 0:01:34]}  Nxa6 {[%clk 0:01:27]} 23. Nd6 {[%clk 0:01:33]}  Ke7 {[%clk 0:01:25]} 24. f5 {[%clk 0:01:33]}  Rhf8 {[%clk 0:01:11]} 25. Rf3 {[%clk 0:01:27]}  c5 {[%clk 0:00:59]} 26. Raf1 {[%clk 0:01:24]}  f6 {[%clk 0:00:54]} 27. fxe6 {[%clk 0:01:20]}  fxe5 {[%clk 0:00:43]} 28. Rf7+ {[%clk 0:00:56]}  Rxf7 {[%clk 0:00:42]} 29. exf7 {[%clk 0:00:56]}  exd4 {[%clk 0:00:39]} 30. g4 {[%clk 0:00:41]}  Ne3 {[%clk 0:00:34]} 31. Rf4 {[%clk 0:00:23]}  Kxd6 {[%clk 0:00:15]} 32. g5 {[%clk 0:00:23]}  Nc7 {[%clk 0:00:12]} 33. f8=Q+ {[%clk 0:00:19]}  Rxf8 {[%clk 0:00:12]} 34. Rxf8 {[%clk 0:00:20]}  Ne6 {[%clk 0:00:12]} 35. Rf2 {[%clk 0:00:19]}  Nxg5 {[%clk 0:00:12]} 36. h4 {[%clk 0:00:19]}  Nh3+ {[%clk 0:00:12]} 0-1


[Site "https://www.chess.com"]

[Event "Titled Tuesday Blitz December 06 Late 2022"]
[White "Polster, Christian"]
[Black "Adewumi, Tanitoluwa"]
[WhiteFideId "12965081"]
[BlackFideId "30966396"]
[WhiteElo "2195"]
[BlackElo "2496"]
[Result "1-0"]
[Round "11"]
[TimeControl "180+1"]
[Date "2022.12.07"]
[WhiteClock "0:00:07"]
[BlackClock "0:00:02"]

1. e4 {[%clk 0:03:00]}  c5 {[%clk 0:02:52]} 2. Nc3 {[%clk 0:02:58]}  Nc6 {[%clk 0:02:42]} 3. Nge2 {[%clk 0:02:53]}  e6 {[%clk 0:02:41]} 4. g3 {[%clk 0:02:49]}  Nf6 {[%clk 0:02:35]} 5. Bg2 {[%clk 0:02:48]}  d5 {[%clk 0:02:35]} 6. exd5 {[%clk 0:02:47]}  exd5 {[%clk 0:02:32]} 7. d4 {[%clk 0:02:46]}  cxd4 {[%clk 0:02:31]} 8. Nxd4 {[%clk 0:02:45]}  Bc5 {[%clk 0:02:27]} 9. Nb3 {[%clk 0:02:31]}  Bb6 {[%clk 0:02:25]} 10. O-O {[%clk 0:01:40]}  Be6 {[%clk 0:01:39]} 11. Bg5 {[%clk 0:01:36]}  O-O {[%clk 0:01:38]} 12. Na4 {[%clk 0:00:48]}  h6 {[%clk 0:00:51]} 13. Nxb6 {[%clk 0:00:35]}  axb6 {[%clk 0:00:48]} 14. Bf4 {[%clk 0:00:21]}  Ne4 {[%clk 0:00:47]} 15. c3 {[%clk 0:00:19]}  b5 {[%clk 0:00:45]} 16. a3 {[%clk 0:00:19]}  Qf6 {[%clk 0:00:41]} 17. Be3 {[%clk 0:00:19]}  Rfc8 {[%clk 0:00:35]} 18. Nd4 {[%clk 0:00:19]}  Ne5 {[%clk 0:00:33]} 19. Nxb5 {[%clk 0:00:17]}  Nc4 {[%clk 0:00:28]} 20. Bd4 {[%clk 0:00:17]}  Qg6 {[%clk 0:00:27]} 21. b3 {[%clk 0:00:17]}  Na5 {[%clk 0:00:21]} 22. a4 {[%clk 0:00:16]}  Bf5 {[%clk 0:00:18]} 23. Re1 {[%clk 0:00:16]}  Be6 {[%clk 0:00:13]} 24. f3 {[%clk 0:00:16]}  Nf6 {[%clk 0:00:06]} 25. Bf1 {[%clk 0:00:14]}  Nd7 {[%clk 0:00:03]} 26. Nd6 {[%clk 0:00:11]}  Qh5 {[%clk 0:00:04]} 27. Nxc8 {[%clk 0:00:11]}  Rxc8 {[%clk 0:00:05]} 28. Bg2 {[%clk 0:00:11]}  Rc6 {[%clk 0:00:03]} 29. b4 {[%clk 0:00:11]}  Nc4 {[%clk 0:00:03]} 30. a5 {[%clk 0:00:11]}  Rc8 {[%clk 0:00:03]} 31. a6 {[%clk 0:00:10]}  bxa6 {[%clk 0:00:04]} 32. Rxa6 {[%clk 0:00:09]}  Qf5 {[%clk 0:00:05]} 33. Qb1 {[%clk 0:00:09]}  Qg5 {[%clk 0:00:04]} 34. Qc1 {[%clk 0:00:08]}  Qf5 {[%clk 0:00:05]} 35. b5 {[%clk 0:00:08]}  Nc5 {[%clk 0:00:04]} 36. Ra7 {[%clk 0:00:06]}  Nd3 {[%clk 0:00:03]} 37. Qd1 {[%clk 0:00:05]}  Ncb2 {[%clk 0:00:03]} 38. Qb1 {[%clk 0:00:05]}  Nxe1 {[%clk 0:00:03]} 39. Qxe1 {[%clk 0:00:05]}  Qc2 {[%clk 0:00:03]} 40. Qf2 {[%clk 0:00:05]}  Qd1+ {[%clk 0:00:02]} 41. Bf1 {[%clk 0:00:06]}  Nd3 {[%clk 0:00:03]} 42. Qe2 {[%clk 0:00:05]}  Qxe2 {[%clk 0:00:02]} 43. Bxe2 {[%clk 0:00:06]}  Nc1 {[%clk 0:00:02]} 44. Bf1 {[%clk 0:00:06]}  Nb3 {[%clk 0:00:03]} 45. b6 {[%clk 0:00:06]}  Nxd4 {[%clk 0:00:02]} 46. cxd4 {[%clk 0:00:07]}  Kh7 {[%clk 0:00:03]} 47. b7 {[%clk 0:00:07]}  Rb8 {[%clk 0:00:03]} 48. Ba6 {[%clk 0:00:07]}  Rd8 {[%clk 0:00:02]} 49. Ra8 {[%clk 0:00:08]}  Rd6 {[%clk 0:00:02]} 50. b8=Q {[%clk 0:00:08]}  Rc6 {[%clk 0:00:03]} 51. Qb7 {[%clk 0:00:08]}  Rc1+ {[%clk 0:00:04]} 52. Kf2 {[%clk 0:00:08]}  Rh1 {[%clk 0:00:03]} 53. Bf1 {[%clk 0:00:08]}  Rxh2+ {[%clk 0:00:03]} 54. Kg1 {[%clk 0:00:07]}  Rd2 {[%clk 0:00:03]} 55. Qc6 {[%clk 0:00:07]}  Rxd4 {[%clk 0:00:03]} 56. Qc2+ {[%clk 0:00:07]}  f5 {[%clk 0:00:02]} 57. Ra7 {[%clk 0:00:07]} 1-0


[Site "https://www.chess.com"]

[Event "Titled Tuesday Blitz December 06 Late 2022"]
[White "Reprintsev, Alexander"]
[Black "Ankerst, Mihael"]
[WhiteFideId "14100541"]
[BlackFideId "14602369"]
[WhiteElo "2230"]
[BlackElo "2385"]
[Result "1/2-1/2"]
[Round "11"]
[TimeControl "180+1"]
[Date "2022.12.07"]
[WhiteClock "0:00:11"]
[BlackClock "0:00:25"]

1. e4 {[%clk 0:02:48]}  c5 {[%clk 0:02:59]} 2. b3 {[%clk 0:02:47]}  Nc6 {[%clk 0:02:58]} 3. Bb2 {[%clk 0:02:47]}  e6 {[%clk 0:02:59]} 4. Qe2 {[%clk 0:02:45]}  d5 {[%clk 0:02:52]} 5. exd5 {[%clk 0:02:43]}  Qxd5 {[%clk 0:02:53]} 6. Nc3 {[%clk 0:02:43]}  Qd8 {[%clk 0:02:54]} 7. O-O-O {[%clk 0:02:42]}  Nf6 {[%clk 0:02:55]} 8. Nf3 {[%clk 0:02:42]}  Be7 {[%clk 0:02:55]} 9. d4 {[%clk 0:02:17]}  O-O {[%clk 0:02:48]} 10. dxc5 {[%clk 0:02:13]}  Qa5 {[%clk 0:02:47]} 11. Qb5 {[%clk 0:02:09]}  Bxc5 {[%clk 0:02:45]} 12. Qxa5 {[%clk 0:02:04]}  Nxa5 {[%clk 0:02:45]} 13. Rd2 {[%clk 0:01:41]}  Bd7 {[%clk 0:02:44]} 14. Ne5 {[%clk 0:01:32]}  Be8 {[%clk 0:02:42]} 15. Nd3 {[%clk 0:01:18]}  Be7 {[%clk 0:02:39]} 16. Be2 {[%clk 0:01:13]}  Rd8 {[%clk 0:02:37]} 17. Bf3 {[%clk 0:01:12]}  Nc6 {[%clk 0:02:37]} 18. Rhd1 {[%clk 0:01:10]}  h6 {[%clk 0:02:35]} 19. Kb1 {[%clk 0:00:28]}  Bd7 {[%clk 0:02:25]} 20. Ne4 {[%clk 0:00:28]}  Bc8 {[%clk 0:02:21]} 21. Nxf6+ {[%clk 0:00:27]}  Bxf6 {[%clk 0:02:21]} 22. Bxf6 {[%clk 0:00:27]}  gxf6 {[%clk 0:02:21]} 23. Bxc6 {[%clk 0:00:27]}  bxc6 {[%clk 0:02:21]} 24. Nc5 {[%clk 0:00:27]}  Rd5 {[%clk 0:02:20]} 25. Rxd5 {[%clk 0:00:20]}  cxd5 {[%clk 0:02:19]} 26. c4 {[%clk 0:00:19]}  dxc4 {[%clk 0:02:12]} 27. bxc4 {[%clk 0:00:19]}  e5 {[%clk 0:02:12]} 28. Kb2 {[%clk 0:00:19]}  Re8 {[%clk 0:02:11]} 29. Kc3 {[%clk 0:00:19]}  Kg7 {[%clk 0:02:11]} 30. f3 {[%clk 0:00:19]}  Re7 {[%clk 0:02:11]} 31. Rd6 {[%clk 0:00:19]}  Rc7 {[%clk 0:02:10]} 32. Nd3 {[%clk 0:00:17]}  Be6 {[%clk 0:02:10]} 33. Nb2 {[%clk 0:00:14]}  f5 {[%clk 0:02:03]} 34. a4 {[%clk 0:00:13]}  Bc8 {[%clk 0:02:01]} 35. a5 {[%clk 0:00:12]}  h5 {[%clk 0:02:00]} 36. h4 {[%clk 0:00:11]}  Be6 {[%clk 0:02:00]} 37. a6 {[%clk 0:00:09]}  f4 {[%clk 0:01:47]} 38. Kb4 {[%clk 0:00:08]}  Kf6 {[%clk 0:01:43]} 39. c5 {[%clk 0:00:08]}  Ke7 {[%clk 0:01:44]} 40. Nd3 {[%clk 0:00:07]}  f6 {[%clk 0:01:43]} 41. Nf2 {[%clk 0:00:06]}  Bf5 {[%clk 0:01:43]} 42. Kb5 {[%clk 0:00:04]}  Rc8 {[%clk 0:01:42]} 43. Rd2 {[%clk 0:00:02]}  Bd7+ {[%clk 0:01:38]} 44. Kc4 {[%clk 0:00:02]}  Rb8 {[%clk 0:01:36]} 45. Ne4 {[%clk 0:00:01]}  Bb5+ {[%clk 0:01:37]} 46. Kc3 {[%clk 0:00:01]}  Bc6 {[%clk 0:01:30]} 47. Nd6 {[%clk 0:00:02]}  Ke6 {[%clk 0:01:26]} 48. Rb2 {[%clk 0:00:02]}  Rxb2 {[%clk 0:01:23]} 49. Kxb2 {[%clk 0:00:03]}  Kd5 {[%clk 0:01:23]} 50. Nb7 {[%clk 0:00:03]}  f5 {[%clk 0:01:21]} 51. Kc3 {[%clk 0:00:03]}  e4 {[%clk 0:01:21]} 52. Kd2 {[%clk 0:00:02]}  Kc4 {[%clk 0:01:13]} 53. Ke2 {[%clk 0:00:02]}  Kb5 {[%clk 0:01:11]} 54. Nd8 {[%clk 0:00:02]}  Kxc5 {[%clk 0:01:08]} 55. Ne6+ {[%clk 0:00:02]}  Kb6 {[%clk 0:01:08]} 56. Nxf4 {[%clk 0:00:03]}  Kxa6 {[%clk 0:01:07]} 57. Nxh5 {[%clk 0:00:03]}  Kb5 {[%clk 0:01:07]} 58. Ng7 {[%clk 0:00:03]}  a5 {[%clk 0:00:47]} 59. h5 {[%clk 0:00:04]}  a4 {[%clk 0:00:47]} 60. h6 {[%clk 0:00:05]}  a3 {[%clk 0:00:48]} 61. h7 {[%clk 0:00:05]}  a2 {[%clk 0:00:48]} 62. h8=Q {[%clk 0:00:05]}  exf3+ {[%clk 0:00:48]} 63. gxf3 {[%clk 0:00:05]}  a1=Q {[%clk 0:00:49]} 64. Qb8+ {[%clk 0:00:05]}  Kc4 {[%clk 0:00:46]} 65. Qf4+ {[%clk 0:00:05]}  Qd4 {[%clk 0:00:42]} 66. Qxd4+ {[%clk 0:00:02]}  Kxd4 {[%clk 0:00:42]} 67. Nxf5+ {[%clk 0:00:02]}  Ke5 {[%clk 0:00:43]} 68. Ne3 {[%clk 0:00:02]}  Kf4 {[%clk 0:00:43]} 69. Kf2 {[%clk 0:00:02]}  Bb5 {[%clk 0:00:43]} 70. Nf1 {[%clk 0:00:03]}  Bc6 {[%clk 0:00:43]} 71. Ng3 {[%clk 0:00:04]}  Kg5 {[%clk 0:00:43]} 72. Ne2 {[%clk 0:00:05]}  Kf6 {[%clk 0:00:44]} 73. Ke3 {[%clk 0:00:05]}  Bd7 {[%clk 0:00:44]} 74. Nd4 {[%clk 0:00:06]}  Bc8 {[%clk 0:00:45]} 75. Kf4 {[%clk 0:00:06]}  Kf7 {[%clk 0:00:46]} 76. Ne2 {[%clk 0:00:07]}  Kf8 {[%clk 0:00:46]} 77. Ng3 {[%clk 0:00:06]}  Kg8 {[%clk 0:00:47]} 78. Ne4 {[%clk 0:00:07]}  Kf8 {[%clk 0:00:47]} 79. Ke5 {[%clk 0:00:08]}  Bb7 {[%clk 0:00:47]} 80. f4 {[%clk 0:00:09]}  Ba8 {[%clk 0:00:47]} 81. Nd6 {[%clk 0:00:10]}  Bg2 {[%clk 0:00:47]} 82. f5 {[%clk 0:00:11]}  Bh3 {[%clk 0:00:47]} 83. f6 {[%clk 0:00:12]}  Bd7 {[%clk 0:00:46]} 84. Ne4 {[%clk 0:00:13]}  Kf7 {[%clk 0:00:47]} 85. Ng5+ {[%clk 0:00:13]}  Kg6 {[%clk 0:00:46]} 86. Kd6 {[%clk 0:00:11]}  Be8 {[%clk 0:00:26]} 87. f7 {[%clk 0:00:11]}  Bxf7 {[%clk 0:00:25]} 1/2-1/2


[Site "https://www.chess.com"]